fUSD/lending_fUSD_20250310
["ID","MTS","AMOUNT","RATE_DAILY","PERIOD"]
[355794659,1741564955735,-237.11,9.101e-05,2]
[355794660,1741564955759,-262.89,9.101e-05,2]
[355794661,1741564976396,-337.11,9.101e-05,2]
[355794662,1741564976423,-162.89,9.106e-05,2]
[355794663,1741564988211,-183.01,9.062e-05,2]
[355794664,1741565010752,150.0,0.00026152,120]
[355794665,1741565049045,-267.11,9.106e-05,2]
[355794666,1741565093254,-1320.15,8.219e-05,2]
[355794667,1741565157659,-1000.0,9.223e-05,2]
[355794670,1741565351866,-170.81,9.197e-05,2]
[355794688,1741565431762,-421.13,9.297e-05,2]
[355794689,1741565431772,-154.99,9.506e-05,2]
[355794690,1741565431782,-150.0,9.562e-05,7]
[355794691,1741565431792,-150.0,9.737e-05,2]
[355794692,1741565431802,-150.0,9.745e-05,2]
[355794693,1741565431811,-256.90283129,9.766e-05,2]
[355794694,1741565431821,-150.0,9.786e-05,2]
[355794695,1741565431830,-420.91295788,9.788e-05,2]
[355794696,1741565431840,-150.0,9.798e-05,2]
[355794697,1741565431849,-35.79066327,9.828e-05,2]
[355794698,1741565431862,-964.20933673,9.828e-05,2]
[355794699,1741565431875,-150.0,9.833e-05,2]
[355794700,1741565431884,-1000.0,9.855e-05,2]
[355794701,1741565431894,-150.0,9.893e-05,2]
[355794702,1741565431904,-1000.0,9.896e-05,2]
[355794703,1741565431913,-300.0,9.899e-05,2]
[355794704,1741565431922,-231.5438,9.9e-05,2]
[355794705,1741565431932,-437.5518,9.9e-05,2]
[355794706,1741565431942,-134.743893,9.9e-05,2]
[355794707,1741565431953,-1486.97959309,9.9e-05,2]
[355794708,1741565431964,-3378.27651391,9.9e-05,2]
[355794709,1741565431974,-1000.0,9.9e-05,2]
[355794710,1741565431983,-150.0,9.902e-05,2]
[355794711,1741565431993,-479.72559329,9.905e-05,2]
[355794712,1741565432004,-520.27440671,9.905e-05,2]
[355794713,1741565432014,-54.69684986,9.906e-05,2]
[355794714,1741565432046,-584.860001,9.906e-05,2]
[355794715,1741565432058,-637.44999998,9.906e-05,2]
[355794716,1741565432105,-1591.67605475,9.906e-05,2]
[355794717,1741565432117,-286.24606077,9.906e-05,2]
[355794718,1741565432130,-644.4876136,9.906e-05,2]
[355794719,1741565432540,-1237.02750826,9.906e-05,2]
[355794720,1741565432553,-3600.54847844,9.906e-05,2]
[355794721,1741565432565,-6376.67197017,9.906e-05,2]
[355794722,1741565432575,-150.0,9.91e-05,2]
[355794723,1741565432585,-441.65,9.913e-05,2]
[355794724,1741565432595,-778.48,9.913e-05,2]
[355794725,1741565432604,-150.0,9.922e-05,2]
[355794726,1741565432614,-3919.0,9.922e-05,2]
[355794727,1741565432624,-1000.0,9.924e-05,2]
[355794729,1741565432633,-233.95102441,9.94e-05,2]
[355794731,1741565432643,-1000.0,9.944e-05,2]
[355794733,1741565432653,-150.0,9.946e-05,2]
[355794735,1741565432663,-1000.0,9.947e-05,2]
[355794737,1741565432672,-150.0,9.947e-05,2]
[355794738,1741565432681,-500.54381859,9.973e-05,2]
[355794740,1741565432693,-1000.0,9.985e-05,2]
[355794742,1741565432703,-1000.0,9.99e-05,2]
[355794744,1741565432712,-1000.0,9.99e-05,2]
[355794746,1741565432722,-717.7262254,9.998e-05,2]
[355794748,1741565432731,-2002.6836786,9.998e-05,2]
[355794750,1741565432741,-410.96467283,9.999e-05,2]
[355794860,1741565433958,-250.0,8.928e-05,2]
[355794923,1741565437641,-993.0,9.889e-05,2]
[355794924,1741565437651,-150.0,9.92e-05,2]
[355794925,1741565437662,-589.03532717,9.999e-05,2]
[355794926,1741565437671,-2282.759,9.999e-05,2]
[355794927,1741565437680,-1452.11,9.999e-05,2]
[355794928,1741565437690,-95948.70169646,0.0001,2]
[355794929,1741565437703,-419.229999,0.0001,2]
[355794930,1741565437722,-4809.29293947,0.0001,2]
[355794931,1741565437735,-1231.32874506,0.0001,2]
[355794932,1741565437747,-22217.14766714,0.0001,2]
[355794933,1741565437761,-210362.44562349,0.0001,2]
[355794934,1741565437796,-51046.64861901,0.0001,2]
[355794935,1741565437883,-657.98937011,0.0001,2]
[355794937,1741565439887,-752.206616,0.0001,2]
[355794938,1741565439898,-435.38038272,0.0001,2]
[355794939,1741565439911,-1600.65,0.0001,2]
[355794940,1741565439923,-717.10633169,0.0001,2]
[355794941,1741565440150,-301.92197159,0.0001,2]
[355794942,1741565440164,-2485.44026002,0.0001,2]
[355794943,1741565440177,-518.4033,0.0001,2]
[355794944,1741565440190,-2793.02318066,0.0001,2]
[355794945,1741565440207,-2034.52399846,0.0001,2]
[355794946,1741565440219,-746.56087693,0.0001,2]
[355794947,1741565440231,-15178.36869419,0.0001,2]
[355794948,1741565440240,-1132.0,0.0001,2]
[355794949,1741565440251,-6489.2681123,0.0001,2]
[355794950,1741565440263,-3247.14170945,0.0001,2]
[355794951,1741565440274,-14850.25126209,0.0001,2]
[355794953,1741565440285,-56784.82805995,0.0001,2]
[355794955,1741565440296,-1531.2976,0.0001,2]
[355794957,1741565440307,-2976.20822404,0.0001,2]
[355794959,1741565440318,-3583.06796825,0.0001,2]
[355794973,1741565442814,-780.01541891,0.0001,2]
[355794976,1741565443609,-21013.52788047,0.0001,2]
[355794977,1741565443620,-22777.79725648,0.0001,2]
[355794978,1741565443631,-1741.16837425,0.0001,2]
[355794979,1741565443643,-2429.625,0.0001,2]
[355794980,1741565443654,-1772.16665824,0.0001,2]
[355794981,1741565443673,-547.8259956,0.0001,2]
[355794982,1741565443683,-4044.1486448,0.0001,2]
[355794983,1741565443698,-8665.65283208,0.0001,2]
[355794989,1741565445778,-1550.0,0.0001,2]
[355794990,1741565445789,-1731.0519054,0.0001,2]
[355794991,1741565445915,-332.23710005,0.0001,2]
[355794992,1741565445928,-811.61087622,0.0001,2]
[355794993,1741565445939,-20326.74186532,0.0001,2]
[355794994,1741565446054,-22473.99250045,0.0001,2]
[355794995,1741565451985,-500.0,9.402e-05,2]
[355794997,1741565706771,214.0,0.00028,120]
[355794998,1741565811821,-5044.2189578,0.0001,10]
[355794999,1741565982019,-500.0,0.00010072,5]
[355795000,1741565993881,-500.0,0.00010072,4]
[355795001,1741566004053,-165.01,8.849e-05,2]
[355795002,1741566004081,-302.38,8.898e-05,2]
[355795003,1741566004112,-32.61,8.912e-05,2]
[355795005,1741566062124,-117.39,8.912e-05,2]
[355795006,1741566062147,-850.67702397,8.927e-05,2]
[355795007,1741566064518,-149.32297603,8.927e-05,2]
[355795008,1741566064542,-0.67702397,9e-05,2]
[355795009,1741566134933,-500.0,8.219e-05,2]
[355795010,1741566243154,-777.52,8.219e-05,2]
[355795012,1741566298600,-159.91,8.92e-05,2]
[355795013,1741566350723,-279.2,8.823e-05,2]
[355795014,1741566382687,-200.0,9.8e-05,3]
[355795016,1741566441985,-250.0,9e-05,3]
[355795022,1741566490687,-500.0,9e-05,2]
[355795040,1741566540000,-49.32297603,9e-05,2]
[355795041,1741566540027,-50.0,9e-05,3]
[355795042,1741566540053,-50.67702397,9.009e-05,2]
[355795043,1741566541775,1000.0,0.00028,120]
[355795047,1741566576843,1000.0,0.00028,120]
[355795048,1741566601741,412.09157576,0.00028,120]
[355795057,1741566631891,-109.23297603,9.009e-05,2]
[355795059,1741566631901,-159.91,9.098e-05,2]
[355795060,1741566631911,-600.0,9.1e-05,3]
[355795061,1741566631921,-159.91,9.187e-05,2]
[355795062,1741566631930,-194.11702069,9.2e-05,3]
[355795063,1741566632371,-705.88297931,9.2e-05,3]
[355795064,1741566632381,-181.22806418,9.276e-05,2]
[355795065,1741566632391,-159.91,9.277e-05,2]
[355795066,1741566632401,-1200.0,9.3e-05,3]
[355795067,1741566632411,-150.0,9.339e-05,2]
[355795068,1741566632420,-18915.87069628,9.34e-05,2]
[355795069,1741566632430,-891.35,9.34e-05,2]
[355795070,1741566632441,-344.68,9.34e-05,2]
[355795071,1741566632450,-159.91,9.366e-05,2]
[355795072,1741566632459,-1600.0,9.4e-05,3]
[355795073,1741566632469,-1104.89292283,9.402e-05,2]
[355795074,1741566632479,-159.91,9.455e-05,2]
[355795075,1741566632488,-300.0,9.5e-05,3]
[355795076,1741566632498,-181.22806418,9.538e-05,2]
[355795077,1741566632507,-150.0,9.562e-05,7]
[355795078,1741566632518,-300.0,9.6e-05,3]
[355795079,1741566632528,-300.0,9.7e-05,3]
[355795080,1741566632538,-150.0,9.788e-05,2]
[355795081,1741566632550,-60162.67342322,9.8e-05,3]
[355795082,1741566632559,-205.0,9.8e-05,2]
[355795083,1741566632569,-300.0,9.8e-05,3]
[355795085,1741566632580,-181.22806418,9.8e-05,2]
[355795087,1741566632589,-150.0,9.819e-05,2]
[355795089,1741566632599,-2324.13091716,9.828e-05,2]
[355795092,1741566632613,-1000.0,9.872e-05,2]
[355795094,1741566632622,-1082.6114,9.873e-05,2]
[355795096,1741566632632,-21519.1711,9.873e-05,2]
[355795098,1741566632642,-1124.47756739,9.899e-05,2]
[355795100,1741566632655,-251.17,9.9e-05,2]
[355795102,1741566632664,-16525.849684,9.9e-05,2]
[355795104,1741566632673,-9363.7068,9.9e-05,2]
[355795106,1741566632683,-1000.0,9.9e-05,2]
[355795108,1741566632692,-36381.702,9.9e-05,2]
[355795110,1741566632702,-456.0384,9.9e-05,2]
[355795112,1741566632712,-5000.0,9.9e-05,2]
[355795114,1741566632722,-652.0,9.9e-05,3]
[355795116,1741566632731,-28181.28262282,9.907e-05,2]
[355795117,1741566632741,-2592.993,9.94e-05,2]
[355795118,1741566632750,-170.415,9.94e-05,2]
[355795119,1741566632759,-28181.28262282,9.962e-05,2]
[355795120,1741566632769,-177.60988558,9.972e-05,2]
[355795121,1741566632778,-500.0,9.972e-05,2]
[355795122,1741566632787,-500.0,9.972e-05,2]
[355795123,1741566632797,-251.43480951,9.972e-05,2]
[355795124,1741566632806,-101996.0,9.973e-05,2]
[355795125,1741566632816,-1000.0,9.973e-05,2]
[355795126,1741566632825,-1000.0,9.973e-05,2]
[355795127,1741566632834,-935.0,9.973e-05,2]
[355795128,1741566632844,-502.20120788,9.973e-05,2]
[355795129,1741566632854,-500.0,9.973e-05,2]
[355795130,1741566632863,-152.99719112,9.973e-05,2]
[355795131,1741566632872,-359.5923363,9.973e-05,2]
[355795132,1741566632882,-151.0,9.973e-05,2]
[355795133,1741566632891,-151.0,9.973e-05,2]
[355795134,1741566632900,-1000.0,9.998e-05,2]
[355795135,1741566632909,-1000.0,9.998e-05,2]
[355795136,1741566632918,-1000.0,9.998e-05,2]
[355795137,1741566632927,-1000.0,9.998e-05,2]
[355795138,1741566632936,-1000.0,9.998e-05,2]
[355795139,1741566632945,-1000.0,9.998e-05,2]
[355795140,1741566632955,-1000.0,9.998e-05,2]
[355795141,1741566632965,-1000.0,9.998e-05,2]
[355795142,1741566632974,-1000.0,9.998e-05,2]
[355795143,1741566632983,-1000.0,9.998e-05,2]
[355795144,1741566632993,-1000.0,9.998e-05,2]
[355795145,1741566633002,-1000.0,9.998e-05,2]
[355795146,1741566633012,-1000.0,9.998e-05,2]
[355795147,1741566633021,-1000.0,9.998e-05,2]
[355795148,1741566633031,-1000.0,9.998e-05,2]
[355795149,1741566633041,-1000.0,9.998e-05,2]
[355795150,1741566633050,-1000.0,9.998e-05,2]
[355795151,1741566633060,-1000.0,9.998e-05,2]
[355795152,1741566633071,-1000.0,9.998e-05,2]
[355795153,1741566633082,-1000.0,9.998e-05,2]
[355795154,1741566633092,-1000.0,9.998e-05,2]
[355795155,1741566633104,-1000.0,9.998e-05,2]
[355795156,1741566633115,-1000.0,9.998e-05,2]
[355795157,1741566633125,-1000.0,9.998e-05,2]
[355795158,1741566633135,-1000.0,9.998e-05,2]
[355795159,1741566633146,-1000.0,9.998e-05,2]
[355795160,1741566633155,-1000.0,9.998e-05,2]
[355795161,1741566633165,-1000.0,9.998e-05,2]
[355795162,1741566633175,-1000.0,9.998e-05,2]
[355795163,1741566633185,-1000.0,9.998e-05,2]
[355795164,1741566633195,-1000.0,9.998e-05,2]
[355795165,1741566633205,-1000.0,9.998e-05,2]
[355795166,1741566633215,-1000.0,9.999e-05,2]
[355795167,1741566633225,-1000.0,9.999e-05,2]
[355795168,1741566633236,-1000.0,9.999e-05,2]
[355795169,1741566633246,-1677.02,9.999e-05,2]
[355795170,1741566633256,-1500.0,0.0001,2]
[355795171,1741566633267,-367737.94492964,0.0001,2]
[355795172,1741566633292,-2927.80998168,0.0001,2]
[355795173,1741566633304,-482.14401582,0.0001,2]
[355795179,1741566637804,-1457.0,0.0001,2]
[355795180,1741566637814,-4285.0302828,0.0001,2]
[355795181,1741566637966,-8133.99937694,0.0001,2]
[355795182,1741566638023,-40500.0,0.0001,2]
[355795259,1741566642180,-2612.30408965,0.0001,2]
[355795260,1741566642192,-1995.48288896,0.0001,2]
[355795261,1741566642331,-1413.89999795,0.0001,2]
[355795262,1741566642641,-2433.28172807,0.0001,2]
[355795264,1741566642651,-49856.71827193,0.0001,2]
[355795268,1741566642973,-1000.0,0.0001,2]
[355795269,1741566644489,-265887.46106056,0.0001,2]
[355795270,1741566644503,-869.30755836,0.0001,2]
[355795271,1741566644514,-1759.35999998,0.0001,2]
[355795272,1741566644532,-18497.88714953,0.0001,2]
[355795273,1741566644543,-3793.04568769,0.0001,2]
[355795274,1741566644556,-9103.5,0.0001,2]
[355795275,1741566644582,-8679.7,0.0001,2]
[355795276,1741566644594,-1074.03080141,0.0001,2]
[355795281,1741566645851,-1190.0,0.0001,2]
[355795282,1741566646130,-8146.72530001,0.0001,2]
[355795284,1741566648465,1007.0,0.00028,120]
[355795285,1741566651208,10000.0,0.00028,120]
[355795286,1741566687640,1000.0,0.00028,120]
[355795287,1741566717119,-236.32499576,9.047e-05,2]
[355795288,1741566907388,400.0,0.00028,120]
[355795289,1741566956918,-336.9,8.998e-05,2]
[355795290,1741566956961,-74.25500424,9.047e-05,2]
[355795291,1741566956982,-162.06999152,9.047e-05,2]
[355795292,1741566957021,-87.93000848,9.047e-05,2]
[355795293,1741566957042,-212.06999152,9.092e-05,2]
[355795294,1741566957067,-787.93000848,9.092e-05,2]
[355795295,1741566957087,-236.32499576,9.1e-05,2]
[355795296,1741566957109,-300.0,9.339e-05,2]
[355795297,1741566957130,-2221.0992,9.7e-05,2]
[355795298,1741566957153,-463.93959576,9.7e-05,2]
[355795299,1741566957265,-1108.18740424,9.7e-05,2]
[355795300,1741566966993,-12600.0,0.0001,14]
[355795301,1741567208511,1213.64,8.219e-05,2]
[355795302,1741567301466,152.97,9.106e-05,2]
[355795303,1741567301680,152.97,9.242e-05,2]
[355795304,1741567301903,152.97,9.379e-05,2]
[355795305,1741567302321,152.97,9.515e-05,2]
[355795306,1741567302525,152.97,9.652e-05,2]
[355795308,1741567368170,550.0,9e-05,2]
[355795309,1741567510405,324.0,0.00028,120]
[355795310,1741567680074,227.53552258,0.00028,120]
[355795311,1741567710870,150.0,9.562e-05,7]
[355795315,1741567746511,6.54879576,9.106e-05,2]
[355795316,1741567747272,-150.0,9.106e-05,2]
[355795334,1741567832201,-1043.45120424,9.106e-05,2]
[355795336,1741567832211,-710.9974297,9.8e-05,2]
[355795338,1741567832223,-3665.14401688,9.8e-05,2]
[355795339,1741567832515,-898.32965495,9.8e-05,2]
[355795340,1741567832531,-1589.681725,9.8e-05,2]
[355795341,1741567837360,-2334.14307347,9.8e-05,2]
[355795342,1741567837370,-1000.0,9.8e-05,2]
[355795343,1741567837382,-1002.17469253,9.8e-05,2]
[355795344,1741567837391,-195.00229707,9.8e-05,2]
[355795345,1741567837401,-150.0,9.85e-05,2]
[355795346,1741567837410,-2820.0314501,9.9e-05,2]
[355795423,1741567838174,-299.25,9.9e-05,2]
[355795425,1741567838186,-384.61627826,9.9e-05,2]
[355795613,1741567840400,-1324.26837566,9.9e-05,2]
[355795616,1741567840420,-171.83389598,9.9e-05,2]
[355795618,1741567840430,-1312.0354,9.9e-05,2]
[355795619,1741567840439,-150.0,9.968e-05,2]
[355795621,1741567840449,-151.0,9.969e-05,2]
[355795623,1741567840459,-151.0,9.969e-05,2]
[355795625,1741567840468,-151.0,9.969e-05,2]
[355795627,1741567840478,-151.0,9.969e-05,2]
[355795629,1741567840487,-151.0,9.969e-05,2]
[355795631,1741567840497,-151.0,9.969e-05,2]
[355795633,1741567840506,-151.0,9.969e-05,2]
[355795635,1741567840515,-151.0,9.969e-05,2]
[355795637,1741567840524,-151.0,9.969e-05,2]
[355795639,1741567840536,-151.0,9.969e-05,2]
[355795641,1741567840546,-151.0,9.969e-05,2]
[355795643,1741567840555,-151.0,9.969e-05,2]
[355795645,1741567840564,-151.0,9.969e-05,2]
[355795647,1741567840573,-151.0,9.969e-05,2]
[355795649,1741567840583,-151.0,9.969e-05,2]
[355795651,1741567840592,-151.0,9.969e-05,2]
[355795653,1741567840602,-151.0,9.969e-05,2]
[355795655,1741567840611,-151.0,9.969e-05,2]
[355795657,1741567840620,-84.33061585,9.969e-05,2]
[355795660,1741567840636,-66.66938415,9.969e-05,2]
[355795662,1741567840645,-151.0,9.969e-05,2]
[355795664,1741567840654,-307.74164499,9.973e-05,2]
[355795666,1741567840663,-151.0,9.973e-05,2]
[355795667,1741567840673,-151.0,9.973e-05,2]
[355795669,1741567840683,-151.0,9.973e-05,2]
[355795671,1741567840692,-151.0,9.973e-05,2]
[355795673,1741567840701,-151.0,9.973e-05,2]
[355795675,1741567840710,-101.28769298,9.973e-05,2]
[355795987,1741567843840,-81.90316902,9.973e-05,2]
[355795989,1741567843851,-183.190862,9.973e-05,2]
[355795991,1741567843861,-151.0,9.973e-05,2]
[355795993,1741567843871,-151.0,9.973e-05,2]
[355795995,1741567843880,-78.80977321,9.973e-05,2]
[355796203,1741567846236,-346.32207979,9.973e-05,2]
[355796205,1741567846246,-425.131853,9.973e-05,2]
[355796206,1741567846256,-345.72834478,9.977e-05,2]
[355796208,1741567846266,-1000.0,9.999e-05,2]
[355796210,1741567846275,-773.15603856,9.999e-05,2]
[355796216,1741567846345,-1301.23896144,9.999e-05,2]
[355796218,1741567846355,-1607.14,9.999e-05,2]
[355796220,1741567846364,-5146.52103856,0.0001,2]
[355796293,1741567847384,-19936.13955785,0.0001,2]
[355796296,1741567847399,-6594.47940359,0.0001,2]
[355796298,1741567847408,-11789.22092488,0.0001,2]
[355796300,1741567847420,-7031.6993715,0.0001,2]
[355796303,1741567847436,-1007.3814,0.0001,2]
[355797102,1741567856064,-150.0,9.34e-05,2]
[355797146,1741567892659,371.09,8.902e-05,2]
[355797147,1741567985036,407.72,8.899e-05,2]
[355797148,1741568037560,221.19,8.899e-05,2]
[355797149,1741568037582,324.25500424,8.899e-05,2]
[355797150,1741568040252,-150.0,8.899e-05,2]
[355797153,1741568194210,-300.0,8.895e-05,2]
[355797154,1741568277106,-164.96,8.894e-05,2]
[355797155,1741568360446,-4580.0,8.895e-05,2]
[355797156,1741568391019,-204.64450131,8.894e-05,2]
[355797157,1741568392944,-339.64102603,8.894e-05,2]
[355797158,1741568415022,-113.61447266,8.894e-05,2]
[355797159,1741568415047,-151.38552734,8.895e-05,2]
[355797160,1741568420903,-853.06702397,8.895e-05,2]
[355797161,1741568491620,-150.0,8.893e-05,2]
[355797162,1741568502220,10000.0,0.00028,120]
[355797163,1741568505224,-1458.0,8.893e-05,2]
[355797164,1741568563305,263.95805984,8.219e-05,2]
[355797165,1741568604262,38376.89884876,0.00027524,31]
[355797166,1741568614333,508.66078999,0.00027524,120]
[355797168,1741568644508,501.94738354,0.00027524,120]
[355797169,1741568653573,1000.0,0.00028,120]
[355797170,1741568667051,9000.0,0.00027523,30]
[355797192,1741569032584,-1051.60194016,8.219e-05,2]
[355797193,1741569032593,-131.39805984,8.863e-05,2]
[355797194,1741569032604,-118.60194016,8.863e-05,2]
[355797195,1741569032614,-182.05,8.889e-05,2]
[355797196,1741569032623,-300.0,8.89e-05,2]
[355797197,1741569032633,-150.0,8.891e-05,2]
[355797198,1741569032642,-195.00229707,8.893e-05,2]
[355797199,1741569032651,-204.34576277,8.893e-05,2]
[355797210,1741569038332,-1425.02423723,8.893e-05,2]
[355797211,1741569038342,-623.14043748,8.895e-05,2]
[355797212,1741569038353,-283.40701121,8.895e-05,2]
[355797213,1741569038363,-304.55499576,8.899e-05,2]
[355797214,1741569038372,-250.0,9.025e-05,2]
[355797215,1741569038383,-150.0,9.041e-05,2]
[355797216,1741569038392,-171.42,9.163e-05,2]
[355797217,1741569038401,-182.05,9.422e-05,2]
[355797218,1741569038411,-500.0,9.5e-05,2]
[355797219,1741569038420,-150.0,9.562e-05,7]
[355797220,1741569038429,-150.0,9.776e-05,2]
[355797221,1741569038438,-348.7,9.776e-05,2]
[355797222,1741569038448,-150.0,9.778e-05,2]
[355797223,1741569038457,-150.0,9.797e-05,2]
[355797224,1741569038466,-1380.0922154,9.8e-05,2]
[355797225,1741569038482,-175.3677846,9.8e-05,2]
[355797226,1741569038491,-150.0,9.8e-05,2]
[355797227,1741569038500,-150.0,9.801e-05,2]
[355797228,1741569038509,-150.0,9.802e-05,2]
[355797229,1741569038519,-150.0,9.803e-05,2]
[355797230,1741569038529,-150.0,9.809e-05,2]
[355797231,1741569038538,-150.0,9.809e-05,2]
[355797232,1741569038547,-150.0,9.811e-05,2]
[355797233,1741569038557,-150.0,9.813e-05,2]
[355797234,1741569038567,-150.0,9.813e-05,2]
[355797235,1741569038576,-150.0,9.816e-05,2]
[355797236,1741569038586,-150.0,9.818e-05,2]
[355797237,1741569038595,-150.0,9.818e-05,2]
[355797238,1741569038604,-150.0,9.823e-05,2]
[355797239,1741569038614,-150.0,9.825e-05,2]
[355797240,1741569038623,-150.0,9.829e-05,2]
[355797241,1741569038634,-2485.2,9.836e-05,14]
[355797242,1741569038643,-150.0,9.837e-05,2]
[355797243,1741569038653,-150.0,9.837e-05,2]
[355797244,1741569038663,-150.0,9.849e-05,2]
[355797245,1741569038672,-150.0,9.849e-05,2]
[355797247,1741569038682,-150.0,9.853e-05,2]
[355797249,1741569038691,-150.0,9.858e-05,2]
[355797250,1741569038701,-150.0,9.858e-05,2]
[355797251,1741569038710,-150.0,9.86e-05,2]
[355797252,1741569038719,-150.0,9.862e-05,2]
[355797253,1741569038729,-150.0,9.863e-05,2]
[355797254,1741569038739,-150.0,9.866e-05,2]
[355797255,1741569038748,-150.0,9.867e-05,2]
[355797256,1741569038758,-150.0,9.869e-05,2]
[355797257,1741569038767,-150.0,9.87e-05,2]
[355797258,1741569038776,-150.0,9.87e-05,2]
[355797259,1741569038786,-150.0,9.87e-05,2]
[355797260,1741569038795,-150.0,9.872e-05,2]
[355797261,1741569038805,-150.0,9.874e-05,2]
[355797262,1741569038814,-150.0,9.877e-05,2]
[355797263,1741569038823,-150.0,9.879e-05,2]
[355797264,1741569038832,-150.0,9.879e-05,2]
[355797265,1741569038841,-150.0,9.882e-05,2]
[355797266,1741569038850,-985.294,9.89e-05,2]
[355797267,1741569038860,-1585.877,9.89e-05,2]
[355797268,1741569038869,-641.0,9.89e-05,2]
[355797269,1741569038879,-613.892,9.89e-05,2]
[355797270,1741569038889,-178.906,9.89e-05,2]
[355797271,1741569038899,-811.3150066,9.89e-05,2]
[355797272,1741569040587,-452.9945539,9.89e-05,2]
[355797273,1741569040655,-691.13045541,9.89e-05,2]
[355797274,1741569040678,-266.6244499,9.89e-05,2]
[355797275,1741569040716,-547.03466666,9.89e-05,2]
[355797276,1741569040778,-303.61012991,9.89e-05,2]
[355797277,1741569040789,-859.29073762,9.89e-05,2]
[355797278,1741569040799,-190.5026569,9.89e-05,2]
[355797279,1741569040811,-821.4973431,9.89e-05,2]
[355797280,1741569040820,-150.0,9.89e-05,2]
[355797281,1741569040830,-150.0,9.896e-05,2]
[355797282,1741569040841,-209.1776479,9.896e-05,2]
[355797283,1741569040853,-678.5923521,9.896e-05,2]
[355797284,1741569040863,-150.0,9.897e-05,2]
[355797285,1741569040873,-769.40475309,9.9e-05,2]
[355797286,1741569040955,-158.53024691,9.9e-05,2]
[355797287,1741569040965,-1000.0,9.9e-05,2]
[355797288,1741569040975,-2395.44570101,9.9e-05,2]
[355797319,1741569043414,-441.929,9.9e-05,2]
[355797320,1741569043426,-741.17896453,9.9e-05,2]
[355797321,1741569043438,-8635.87802365,9.9e-05,2]
[355797342,1741569044197,-2348.59111081,9.9e-05,2]
[355797343,1741569044208,-150.0,9.9e-05,2]
[355797344,1741569044219,-150.0,9.9e-05,2]
[355797345,1741569044231,-5000.0,9.9e-05,2]
[355797346,1741569044242,-150.0,9.905e-05,2]
[355797347,1741569044252,-150.0,9.905e-05,2]
[355797348,1741569044262,-150.0,9.905e-05,2]
[355797349,1741569044273,-49.80888919,9.906e-05,2]
[355797350,1741569044504,-100.19111081,9.906e-05,2]
[355797351,1741569044514,-150.0,9.906e-05,2]
[355797352,1741569044523,-150.0,9.917e-05,2]
[355797353,1741569044533,-150.0,9.917e-05,2]
[355797354,1741569044543,-171.42,9.919e-05,2]
[355797355,1741569044551,-199.58908919,9.927e-05,2]
[355797356,1741569044581,-1632.77591081,9.927e-05,2]
[355797357,1741569044591,-150.0,9.934e-05,2]
[355797358,1741569044600,-150.0,9.937e-05,2]
[355797359,1741569044609,-150.0,9.939e-05,2]
[355797360,1741569044850,-150.0,9.939e-05,2]
[355797361,1741569044860,-150.0,9.941e-05,2]
[355797362,1741569044870,-150.0,9.947e-05,2]
[355797363,1741569044880,-150.0,9.954e-05,2]
[355797364,1741569044894,-150.0,9.956e-05,2]
[355797365,1741569044904,-150.0,9.958e-05,2]
[355797366,1741569044914,-150.0,9.959e-05,2]
[355797367,1741569044923,-150.0,9.96e-05,2]
[355797368,1741569044933,-150.0,9.964e-05,2]
[355797369,1741569044942,-150.0,9.966e-05,2]
[355797370,1741569044952,-150.0,9.967e-05,2]
[355797371,1741569044962,-150.0,9.967e-05,2]
[355797372,1741569044971,-150.0,9.969e-05,2]
[355797373,1741569044981,-150.0,9.97e-05,2]
[355797374,1741569044990,-150.0,9.972e-05,2]
[355797375,1741569044999,-500.0,9.973e-05,2]
[355797376,1741569045009,-160.2207878,9.973e-05,2]
[355797377,1741569045018,-150.0,9.981e-05,2]
[355797378,1741569045027,-150.0,9.985e-05,2]
[355797379,1741569045037,-150.0,9.986e-05,2]
[355797380,1741569045046,-150.0,9.993e-05,2]
[355797381,1741569045056,-150.0,9.997e-05,2]
[355797382,1741569045065,-150.0,9.998e-05,2]
[355797383,1741569045074,-235.65964765,9.999e-05,2]
[355797387,1741569046396,-764.34035235,9.999e-05,2]